fUSD/lending_fUSD_20250617
["ID","MTS","AMOUNT","RATE_DAILY","PERIOD"]
[366214396,1750126240934,-490.0,0.00016699,2]
[366214397,1750126240943,-490.0,0.00016699,2]
[366214398,1750126240953,-490.0,0.00016699,2]
[366214399,1750126240963,-699.09,0.00016699,2]
[366214400,1750126240973,-490.0,0.00016699,2]
[366214401,1750126240982,-611.82,0.00016699,2]
[366214402,1750126240992,-576.41,0.00016699,2]
[366214403,1750126241002,-1875.32,0.00016699,2]
[366214404,1750126241011,-869.42,0.00016699,2]
[366214405,1750126241021,-490.0,0.00016699,2]
[366214406,1750126241030,-490.0,0.00016699,2]
[366214407,1750126241040,-553.56,0.000167,2]
[366214408,1750126241050,-24000.0,0.000167,2]
[366214409,1750126241060,-200.0,0.000167,6]
[366214410,1750126241069,-161.69580899,0.000167,2]
[366214411,1750126241079,-167.3,0.000167,2]
[366214412,1750126241088,-185.01377643,0.00016731,2]
[366214413,1750126241098,-258.84870797,0.00016745,2]
[366214414,1750126241107,-1000.0,0.00016767,2]
[366214415,1750126241117,-1000.0,0.00016767,2]
[366214416,1750126241127,-1000.0,0.00016767,2]
[366214417,1750126241137,-951.2116321,0.00016767,2]
[366214418,1750126241147,-161.08773076,0.00016769,2]
[366214419,1750126241156,-378908.92344705,0.00016771,2]
[366214420,1750126241166,-500.0,0.00016773,2]
[366214421,1750126241176,-502.23208581,0.00016773,2]
[366214422,1750126241186,-502.23877711,0.00016773,2]
[366214423,1750126241196,-500.0,0.00016773,2]
[366214424,1750126241205,-501.4414284,0.00016773,2]
[366214425,1750126241223,-501.2093533,0.00016773,2]
[366214426,1750126241238,-300.0,0.00016778,2]
[366214427,1750126241249,-463.11392844,0.00016778,2]
[366214428,1750126241259,-490.0,0.00016778,2]
[366214429,1750126241269,-490.0,0.00016778,2]
[366214430,1750126241279,-3309.63,0.00016778,2]
[366214431,1750126241289,-3309.63,0.00016778,2]
[366214432,1750126241300,-3309.63,0.00016778,2]
[366214433,1750126241310,-490.0,0.00016778,2]
[366214434,1750126241319,-490.0,0.00016778,2]
[366214435,1750126241330,-600.44,0.00016778,2]
[366214436,1750126241339,-490.0,0.00016778,2]
[366214437,1750126241349,-2474.9,0.00016778,2]
[366214438,1750126241359,-2474.9,0.00016778,2]
[366214439,1750126241368,-2474.9,0.00016778,2]
[366214440,1750126241377,-1276.93,0.00016778,2]
[366214441,1750126241389,-490.0,0.00016778,2]
[366214442,1750126241399,-500.0,0.00016778,2]
[366214443,1750126241408,-500.0,0.00016778,2]
[366214444,1750126241419,-490.0,0.00016778,2]
[366214445,1750126241428,-490.0,0.00016778,2]
[366214446,1750126241438,-490.0,0.00016778,2]
[366214447,1750126241449,-807.84,0.00016778,2]
[366214448,1750126241458,-575.47,0.00016778,2]
[366214449,1750126241468,-606.72796451,0.00016778,2]
[366214450,1750126241478,-1038.03,0.00016778,2]
[366214451,1750126241488,-490.0,0.00016778,2]
[366214452,1750126241499,-490.0,0.00016778,2]
[366214453,1750126241508,-490.0,0.00016779,2]
[366214454,1750126241518,-631.25,0.00016779,2]
[366214455,1750126241528,-492.641398,0.00016779,2]
[366214456,1750126241537,-490.0,0.00016779,2]
[366214457,1750126241547,-494.69096245,0.00016779,2]
[366214458,1750126241557,-592.79472098,0.00016779,2]
[366214459,1750126241568,-490.0,0.00016779,2]
[366214460,1750126241578,-493.93313774,0.00016779,2]
[366214461,1750126241587,-490.55311071,0.00016779,2]
[366214462,1750126241597,-490.0,0.00016779,2]
[366214463,1750126241607,-490.0,0.00016779,2]
[366214464,1750126241617,-500.0,0.00016779,2]
[366214465,1750126241627,-376.04634178,0.00016779,2]
[366214466,1750126241638,-494.51915927,0.00016779,2]
[366214467,1750126241648,-500.03663059,0.00016779,2]
[366214468,1750126241658,-499.66377991,0.00016779,2]
[366214469,1750126241671,-499.77884988,0.00016779,2]
[366214470,1750126241683,-494.30752336,0.00016779,2]
[366214471,1750126241693,-490.0,0.00016779,2]
[366214472,1750126241703,-493.35486315,0.00016779,2]
[366214473,1750126241714,-493.02769252,0.00016779,2]
[366214474,1750126241724,-498.44260368,0.00016779,2]
[366214475,1750126241734,-490.0,0.00016779,2]
[366214476,1750126241747,-490.0,0.00016779,2]
[366214477,1750126241757,-492.25060071,0.00016779,2]
[366214478,1750126241767,-490.0,0.00016779,2]
[366214479,1750126241776,-490.0,0.00016779,2]
[366214480,1750126241786,-309.25309205,0.00016779,2]
[366214481,1750126241796,-580.59435283,0.00016779,2]
[366214482,1750126241806,-490.0,0.00016779,2]
[366214483,1750126241815,-490.0,0.00016779,2]
[366214484,1750126241825,-490.0,0.00016779,2]
[366214485,1750126241835,-490.0,0.00016779,2]
[366214486,1750126241845,-494.62517992,0.00016779,2]
[366214487,1750126241855,-490.0,0.00016779,2]
[366214488,1750126241865,-493.1999751,0.00016779,2]
[366214489,1750126241875,-492.72153481,0.00016779,2]
[366214490,1750126241886,-490.0,0.00016779,2]
[366214491,1750126241895,-494.74244122,0.00016779,2]
[366214492,1750126241906,-490.0,0.00016779,2]
[366214493,1750126241917,-493.79670891,0.00016779,2]
[366214494,1750126241927,-492.07852875,0.00016779,2]
[366214495,1750126241937,-490.0,0.00016779,2]
[366214496,1750126241947,-490.0,0.00016779,2]
[366214497,1750126241956,-494.94641368,0.00016779,2]
[366214498,1750126241966,-490.0,0.00016779,2]
[366214499,1750126241976,-490.0,0.00016779,2]
[366214500,1750126241986,-295.34627317,0.00016779,2]
[366214501,1750126241996,-491.8165938,0.00016779,2]
[366214502,1750126242006,-490.0,0.00016779,2]
[366214503,1750126242016,-490.0,0.00016779,2]
[366214504,1750126242026,-491.02277182,0.00016779,2]
[366214505,1750126242035,-490.0,0.00016779,2]
[366214506,1750126242045,-492.3324926,0.00016779,2]
[366214507,1750126242055,-495.43891366,0.00016779,2]
[366214508,1750126242065,-496.5526173,0.00016779,2]
[366214509,1750126242075,-250.0,0.00016779,2]
[366214510,1750126242084,-503.02446161,0.00016779,2]
[366214511,1750126242094,-249.57518734,0.00016779,2]
[366214512,1750126242103,-490.0,0.00016779,2]
[366214513,1750126242113,-492.29755952,0.00016779,2]
[366214514,1750126242123,-494.95337945,0.00016779,2]
[366214515,1750126242133,-490.0,0.00016779,2]
[366214516,1750126242143,-490.0,0.00016779,2]
[366214517,1750126242153,-556.52071547,0.00016779,2]
[366214518,1750126242162,-492.30145566,0.00016779,2]
[366214519,1750126242172,-324.89713108,0.00016779,2]
[366214520,1750126242182,-421.48469702,0.00016779,2]
[366214521,1750126242192,-495.22244751,0.00016779,2]
[366214522,1750126242201,-490.0,0.00016779,2]
[366214523,1750126242211,-492.41350872,0.00016779,2]
[366214524,1750126242221,-591.20113338,0.00016779,2]
[366214525,1750126242230,-492.20713301,0.00016779,2]
[366214526,1750126242240,-519.94906897,0.00016779,2]
[366214527,1750126242251,-498.73231827,0.00016779,2]
[366214528,1750126242261,-492.19897312,0.00016779,2]
[366214529,1750126242271,-490.0,0.00016779,2]
[366214530,1750126242280,-490.0,0.00016779,2]
[366214531,1750126242290,-491.40792876,0.00016779,2]
[366214532,1750126242299,-497.43121629,0.00016779,2]
[366214533,1750126242308,-492.29117497,0.00016779,2]
[366214534,1750126242318,-490.0,0.00016779,2]
[366214535,1750126242327,-490.0,0.00016779,2]
[366214536,1750126242337,-500.30327551,0.00016779,2]
[366214537,1750126242346,-490.73416635,0.00016779,2]
[366214538,1750126242356,-490.0,0.00016779,2]
[366214539,1750126242367,-490.0,0.00016779,2]
[366214540,1750126242376,-520.82660522,0.00016779,2]
[366214541,1750126242386,-490.0,0.00016779,2]
[366214542,1750126242395,-491.4293611,0.00016779,2]
[366214543,1750126242405,-493.52482455,0.00016779,2]
[366214544,1750126242414,-490.0,0.00016779,2]
[366214545,1750126242424,-490.0,0.00016779,2]
[366214546,1750126242434,-252.42653909,0.00016779,2]
[366214548,1750126242444,-266.32544942,0.00016779,2]
[366214549,1750126242453,-492.35267928,0.00016779,2]
[366214550,1750126242462,-500.02247449,0.00016779,2]
[366214551,1750126242471,-491.21579805,0.00016779,2]
[366214553,1750126242481,-490.0,0.00016779,2]
[366214554,1750126242490,-490.0,0.00016779,2]
[366214555,1750126242500,-492.80997384,0.00016779,2]
[366214556,1750126242510,-490.0,0.00016779,2]
[366214557,1750126242519,-491.05086055,0.00016779,2]
[366214558,1750126242529,-490.0,0.00016779,2]
[366214559,1750126242538,-490.0,0.00016779,2]
[366214560,1750126242547,-490.0,0.00016779,2]
[366214561,1750126242557,-490.0,0.00016779,2]
[366214562,1750126242567,-508.33757301,0.00016779,2]
[366214563,1750126242576,-490.0,0.00016779,2]
[366214564,1750126242586,-503.58157089,0.00016779,2]
[366214565,1750126242595,-491.85253377,0.00016779,2]
[366214566,1750126242604,-490.0,0.00016779,2]
[366214567,1750126242614,-494.22865284,0.00016779,2]
[366214568,1750126242623,-490.0,0.00016779,2]
[366214569,1750126242634,-490.0,0.00016779,2]
[366214570,1750126242643,-490.0,0.00016779,2]
[366214571,1750126242652,-434.39599546,0.00016779,2]
[366214572,1750126242662,-490.0,0.00016779,2]
[366214573,1750126242676,-490.0,0.00016779,2]
[366214574,1750126242686,-496.94246709,0.00016779,2]
[366214575,1750126242695,-490.0,0.00016779,2]
[366214576,1750126242705,-490.0,0.00016779,2]
[366214577,1750126242715,-490.0,0.00016779,2]
[366214578,1750126242724,-493.01953458,0.00016779,2]
[366214579,1750126242733,-491.8530857,0.00016779,2]
[366214580,1750126242746,-490.99889557,0.00016779,2]
[366214581,1750126242756,-490.0,0.00016779,2]
[366214582,1750126242766,-494.22604441,0.00016779,2]
[366214583,1750126242775,-490.0,0.00016779,2]
[366214584,1750126242785,-494.34442417,0.00016779,2]
[366214585,1750126242794,-491.43730059,0.00016779,2]
[366214586,1750126242804,-491.32408775,0.00016779,2]
[366214587,1750126242813,-492.84338636,0.00016779,2]
[366214588,1750126242823,-421.39914167,0.00016779,2]
[366214589,1750126242833,-499.39256722,0.00016779,2]
[366214590,1750126242843,-501.27593478,0.00016779,2]
[366214591,1750126242852,-493.81265175,0.00016779,2]
[366214592,1750126242861,-493.64649377,0.00016779,2]
[366214593,1750126242871,-504.38893489,0.00016779,2]
[366214594,1750126242880,-490.0,0.00016779,2]
[366214595,1750126242890,-491.89950144,0.00016779,2]
[366214596,1750126242899,-499.36748352,0.00016779,2]
[366214597,1750126242909,-492.96351131,0.00016779,2]
[366214598,1750126242918,-492.91544653,0.00016779,2]
[366214599,1750126242928,-490.0,0.00016779,2]
[366214600,1750126242937,-499.1367861,0.00016779,2]
[366214601,1750126242946,-506.29155616,0.00016779,2]
[366214602,1750126242956,-490.9004934,0.00016779,2]
[366214603,1750126242965,-497.14400602,0.00016779,2]
[366214604,1750126242975,-490.0,0.00016779,2]
[366214605,1750126242984,-494.56998405,0.00016779,2]
[366214606,1750126242995,-495.69979136,0.00016779,2]
[366214608,1750126243005,-499.24016375,0.00016779,2]
[366214610,1750126243015,-490.0,0.00016779,2]
[366214612,1750126243024,-500.17767144,0.00016779,2]
[366214614,1750126243034,-490.0,0.00016779,2]
[366214616,1750126243043,-490.0,0.00016779,2]
[366214618,1750126243053,-490.0,0.00016779,2]
[366214620,1750126243063,-490.0,0.00016779,2]
[366214622,1750126243072,-453.79804036,0.00016779,2]
[366214624,1750126243081,-492.50822608,0.00016779,2]
[366214626,1750126243091,-501.79572336,0.00016779,2]
[366214628,1750126243101,-490.0,0.00016779,2]
[366214630,1750126243110,-490.0,0.00016779,2]
[366214632,1750126243120,-494.87771885,0.00016779,2]
[366214634,1750126243130,-490.0,0.00016779,2]
[366214636,1750126243140,-515.88624911,0.00016779,2]
[366214638,1750126243150,-490.0,0.00016779,2]
[366214640,1750126243159,-490.0,0.00016779,2]
[366214642,1750126243169,-679.22,0.00016779,2]
[366214644,1750126243179,-490.0,0.00016779,2]
[366214646,1750126243189,-303.12955328,0.00016779,2]
[366214649,1750126243199,-491.24080542,0.00016779,2]
[366214652,1750126243208,-497.04341815,0.00016779,2]
[366214654,1750126243217,-491.91644031,0.00016779,2]
[366214656,1750126243227,-490.0,0.00016779,2]
[366214658,1750126243236,-492.35919482,0.00016779,2]
[366214661,1750126243247,-490.0,0.00016779,2]
[366214663,1750126243256,-490.0,0.00016779,2]
[366214665,1750126243266,-491.74753081,0.00016779,2]
[366214667,1750126243275,-342.34151582,0.00016779,2]
[366214669,1750126243285,-490.0,0.00016779,2]
[366214671,1750126243295,-490.0,0.00016779,2]
[366214673,1750126243304,-490.0,0.00016779,2]
[366214675,1750126243314,-490.74094174,0.00016779,2]
[366214677,1750126243323,-490.0,0.00016779,2]
[366214679,1750126243332,-490.0,0.00016779,2]
[366214681,1750126243341,-280.73494046,0.00016779,2]
[366214683,1750126243350,-492.55001135,0.00016779,2]
[366214685,1750126243360,-490.0,0.00016779,2]
[366214687,1750126243370,-515.66167123,0.00016779,2]
[366214689,1750126243379,-490.0,0.00016779,2]
[366214691,1750126243388,-492.86131158,0.00016779,2]
[366214693,1750126243398,-292.51761119,0.00016779,2]
[366214695,1750126243407,-491.48268534,0.00016779,2]
[366214697,1750126243417,-558.16568576,0.00016779,2]
[366214699,1750126243426,-614.7901509,0.00016779,2]
[366214701,1750126243436,-490.0,0.00016779,2]
[366214703,1750126243444,-491.92133459,0.00016779,2]
[366214705,1750126243454,-490.0,0.00016779,2]
[366214707,1750126243463,-490.0,0.00016779,2]
[366214709,1750126243473,-564.22,0.00016779,2]
[366214712,1750126243482,-507.42098966,0.00016779,2]
[366214714,1750126243492,-490.0,0.00016779,2]
[366214716,1750126243502,-497.33,0.00016779,2]
[366214718,1750126243512,-490.0,0.00016779,2]
[366214720,1750126243521,-490.0,0.00016779,2]
[366214722,1750126243531,-504.57110396,0.00016779,2]
[366214723,1750126243540,-490.0,0.00016779,2]
[366214724,1750126243550,-491.02322098,0.00016779,2]
[366214726,1750126243560,-490.0,0.00016779,2]
[366214728,1750126243569,-490.0,0.00016779,2]
[366214730,1750126243579,-499.72191137,0.00016779,2]
[366214732,1750126243588,-505.88543765,0.00016779,2]
[366214734,1750126243598,-491.80273718,0.00016779,2]
[366214736,1750126243608,-505.13382505,0.00016779,2]
[366214738,1750126243618,-457.53146409,0.00016779,2]
[366214740,1750126243628,-490.0,0.00016779,2]
[366214742,1750126243638,-490.0,0.00016779,2]
[366214744,1750126243647,-492.73990753,0.00016779,2]
[366214746,1750126243657,-490.93270856,0.00016779,2]
[366214747,1750126243668,-490.0,0.00016779,2]
[366214749,1750126243678,-490.0,0.00016779,2]
[366214751,1750126243687,-490.0,0.00016779,2]
[366214753,1750126243697,-497.32126454,0.00016779,2]
[366214755,1750126243707,-490.0,0.00016779,2]
[366214757,1750126243718,-490.0,0.00016779,2]
[366214759,1750126243727,-490.0,0.00016779,2]
[366214761,1750126243738,-492.15159991,0.00016779,2]
[366214763,1750126243749,-490.0,0.00016779,2]
[366214765,1750126243760,-490.0,0.00016779,2]
[366214767,1750126243770,-490.0,0.00016779,2]
[366214769,1750126243779,-490.0,0.00016779,2]
[366214771,1750126243789,-490.0,0.00016779,2]
[366214773,1750126243799,-490.0,0.00016779,2]
[366214775,1750126243811,-491.26725413,0.00016779,2]
[366214777,1750126243820,-498.36919115,0.00016779,2]
[366214779,1750126243830,-490.0,0.00016779,2]
[366214781,1750126243840,-490.0,0.00016779,2]
[366214783,1750126243850,-490.0,0.00016779,2]
[366214785,1750126243859,-490.04473337,0.00016779,2]
[366214787,1750126243869,-490.0,0.00016779,2]
[366214789,1750126243879,-491.69179519,0.00016779,2]
[366214791,1750126243888,-490.0,0.00016779,2]
[366214793,1750126243898,-447.44882298,0.00016779,2]
[366214795,1750126243907,-490.0,0.00016779,2]
[366214797,1750126243917,-497.73054829,0.00016779,2]
[366214799,1750126243926,-490.0,0.00016779,2]
[366214801,1750126243935,-490.0,0.00016779,2]
[366214803,1750126243945,-393.90384393,0.00016779,2]
[366214805,1750126243954,-490.0,0.00016779,2]
[366214807,1750126243964,-490.0,0.00016779,2]
[366214809,1750126243974,-490.0,0.00016779,2]
[366214811,1750126243983,-490.0,0.00016779,2]
[366214813,1750126243993,-490.0,0.00016779,2]
[366214815,1750126244004,-497.80657209,0.00016779,2]
[366214816,1750126244014,-490.0,0.00016779,2]
[366214818,1750126244024,-378.83929327,0.00016779,2]
[366214820,1750126244033,-490.0,0.00016779,2]
[366214822,1750126244043,-491.70323037,0.00016779,2]
[366214824,1750126244053,-490.0,0.00016779,2]
[366214826,1750126244063,-492.26142608,0.00016779,2]
[366214828,1750126244073,-478.13258845,0.00016779,2]
[366214830,1750126244082,-495.06441106,0.00016779,2]
[366214832,1750126244092,-490.0,0.00016779,2]
[366214834,1750126244101,-490.0,0.00016779,2]
[366214836,1750126244111,-499.94629607,0.00016779,2]
[366214838,1750126244120,-490.0,0.00016779,2]
[366214840,1750126244130,-490.0,0.00016779,2]
[366214842,1750126244140,-490.0,0.00016779,2]
[366214844,1750126244149,-490.0,0.00016779,2]
[366214846,1750126244159,-500.0,0.00016779,2]
[366214848,1750126244168,-500.0,0.00016779,2]
[366214850,1750126244178,-493.74311138,0.00016779,2]
[366214852,1750126244188,-500.0,0.00016779,2]
[366214854,1750126244198,-489.62528281,0.00016779,2]
[366214856,1750126244207,-490.0,0.00016779,2]
[366214858,1750126244217,-490.0,0.00016779,2]
[366214860,1750126244227,-490.0,0.00016779,2]
[366214862,1750126244237,-490.0,0.00016779,2]
[366214864,1750126244248,-490.0,0.00016779,2]
[366214865,1750126244258,-490.0,0.00016779,2]
[366214867,1750126244268,-490.0,0.00016779,2]
[366214869,1750126244277,-490.0,0.00016779,2]
[366214871,1750126244287,-495.82875211,0.00016779,2]
[366214873,1750126244296,-492.10217183,0.00016779,2]
[366214875,1750126244306,-490.0,0.00016779,2]
[366214877,1750126244316,-490.0,0.00016779,2]
[366214879,1750126244326,-490.0,0.00016779,2]
[366214881,1750126244339,-499.53314191,0.00016779,2]
[366214883,1750126244361,-490.0,0.00016779,2]
[366214885,1750126244372,-490.0,0.00016779,2]
[366214887,1750126244381,-492.79095065,0.00016779,2]
[366214889,1750126244392,-482.7393811,0.00016779,2]
[366214891,1750126244402,-490.0,0.00016779,2]
[366214894,1750126244411,-490.70909861,0.00016779,2]
[366214896,1750126244422,-490.0,0.00016779,2]
[366214897,1750126244432,-490.0,0.00016779,2]
[366214899,1750126244441,-495.80033714,0.00016779,2]
[366214901,1750126244451,-490.0,0.00016779,2]
[366214903,1750126244461,-493.03886273,0.00016779,2]
[366214905,1750126244471,-492.14272794,0.00016779,2]
[366214907,1750126244480,-490.0,0.00016779,2]
[366214909,1750126244490,-502.4494037,0.00016779,2]
[366214911,1750126244500,-494.08609313,0.00016779,2]
[366214913,1750126244510,-490.0,0.00016779,2]
[366214915,1750126244519,-490.0,0.00016779,2]
[366214917,1750126244529,-490.0,0.00016779,2]
[366214919,1750126244540,-546.14971454,0.00016779,2]
[366214921,1750126244550,-490.0,0.00016779,2]
[366214923,1750126244559,-499.60712725,0.00016779,2]
[366214925,1750126244569,-436.08156087,0.00016779,2]
[366214927,1750126244578,-490.0,0.00016779,2]
[366214929,1750126244588,-490.0,0.00016779,2]
[366214931,1750126244598,-490.0,0.00016779,2]
[366214933,1750126244607,-490.0,0.00016779,2]
[366214935,1750126244617,-491.71298873,0.00016779,2]
[366214937,1750126244626,-490.0,0.00016779,2]
[366214939,1750126244636,-494.82333247,0.00016779,2]
[366214941,1750126244645,-490.0,0.00016779,2]
[366214943,1750126244654,-491.33265559,0.00016779,2]
[366214945,1750126244665,-490.0,0.00016779,2]
[366214947,1750126244677,-493.15098846,0.00016779,2]
[366214949,1750126244687,-490.0,0.00016779,2]
[366214951,1750126244697,-491.460897,0.00016779,2]
[366214953,1750126244706,-492.30134546,0.00016779,2]
[366214955,1750126244717,-498.58612124,0.00016779,2]
[366214957,1750126244727,-490.0,0.00016779,2]
[366214959,1750126244737,-490.0,0.00016779,2]
[366214961,1750126244749,-498.85918627,0.00016779,2]
[366214964,1750126244759,-490.0,0.00016779,2]
[366214966,1750126244770,-500.0,0.00016779,2]
[366214968,1750126244779,-500.0,0.00016779,2]
[366214970,1750126244789,-295.62849212,0.00016779,2]
[366214971,1750126244798,-490.0,0.00016779,2]
[366214973,1750126244808,-491.43888478,0.00016779,2]
[366214975,1750126244818,-499.18481584,0.00016779,2]
[366214978,1750126244833,-490.0,0.00016779,2]
[366214980,1750126244843,-494.8622706,0.00016779,2]
[366214982,1750126244853,-490.0,0.00016779,2]
[366214984,1750126244863,-492.67608153,0.00016779,2]
[366214986,1750126244872,-491.07495522,0.00016779,2]
[366214988,1750126244882,-496.32449391,0.00016779,2]
[366214990,1750126244892,-490.0,0.00016779,2]
[366214992,1750126244902,-490.0,0.00016779,2]
[366215012,1750126245087,-250.58593218,0.00016779,2]
[366215014,1750126245104,-491.62900299,0.00016779,2]
[366215016,1750126245114,-151.0,0.00016779,2]
[366215018,1750126245126,-490.0,0.00016779,2]
[366215020,1750126245136,-490.0,0.00016779,2]
[366215022,1750126245146,-443.67798077,0.00016779,2]
[366215024,1750126245156,-490.0,0.00016779,2]
[366215026,1750126245166,-490.0,0.00016779,2]
[366215028,1750126245176,-395.89516224,0.00016779,2]
[366215030,1750126245186,-490.0,0.00016779,2]
[366215032,1750126245196,-490.0,0.00016779,2]
[366215034,1750126245207,-491.4789031,0.00016779,2]
[366215037,1750126245217,-490.0,0.00016779,2]
[366215038,1750126245235,-492.89204108,0.00016779,2]
[366215040,1750126245246,-493.98594635,0.00016779,2]
[366215042,1750126245255,-491.70153735,0.00016779,2]
[366215044,1750126245265,-490.0,0.00016779,2]
[366215046,1750126245275,-490.0,0.00016779,2]
[366215048,1750126245284,-494.78474843,0.00016779,2]
[366215050,1750126245294,-490.0,0.00016779,2]
[366215052,1750126245304,-490.0,0.00016779,2]
[366215054,1750126245313,-491.53282271,0.00016779,2]
[366215056,1750126245323,-490.0,0.00016779,2]
[366215058,1750126245333,-500.0,0.00016779,2]
[366215060,1750126245343,-500.0,0.00016779,2]
[366215063,1750126245353,-500.0,0.00016779,2]
[366215066,1750126245364,-492.68632071,0.00016779,2]
[366215069,1750126245374,-207.83331317,0.00016779,2]
[366215072,1750126245384,-498.73181708,0.00016779,2]
[366215075,1750126245394,-490.0,0.00016779,2]
[366215078,1750126245404,-490.0,0.00016779,2]
[366215081,1750126245415,-492.29235335,0.00016779,2]
[366215084,1750126245425,-490.0,0.00016779,2]
[366215087,1750126245436,-493.22618307,0.00016779,2]
[366215091,1750126245447,-502.27931667,0.00016779,2]
[366215094,1750126245457,-492.4464364,0.00016779,2]
[366215098,1750126245467,-490.0,0.00016779,2]
[366215102,1750126245476,-495.23374792,0.00016779,2]
[366215106,1750126245486,-490.0,0.00016779,2]
[366215109,1750126245496,-490.44324034,0.00016779,2]
[366215113,1750126245506,-490.0,0.00016779,2]
[366215116,1750126245516,-490.0,0.00016779,2]
[366215119,1750126245526,-490.0,0.00016779,2]
[366215122,1750126245536,-497.87601074,0.00016779,2]
[366215125,1750126245546,-490.0,0.00016779,2]
[366215128,1750126245555,-496.42803818,0.00016779,2]
[366215131,1750126245565,-490.0,0.00016779,2]
[366215134,1750126245574,-494.05892164,0.00016779,2]
[366215137,1750126245584,-490.0,0.00016779,2]
[366215140,1750126245595,-495.38539434,0.00016779,2]
[366215142,1750126245605,-490.0,0.00016779,2]
[366215144,1750126245615,-1000.0,0.00016779,2]
[366215146,1750126245625,-490.0,0.00016779,2]
[366215148,1750126245634,-493.14632665,0.00016779,2]
[366215150,1750126245644,-495.10835391,0.00016779,2]
[366215152,1750126245654,-506.85959353,0.00016779,2]
[366215154,1750126245665,-491.09184219,0.00016779,2]
[366215156,1750126245676,-492.45227033,0.00016779,2]
[366215158,1750126245686,-490.0,0.00016779,2]
[366215160,1750126245695,-495.65244069,0.00016779,2]
[366215162,1750126245706,-493.78135815,0.00016779,2]
[366215163,1750126245716,-490.0,0.00016779,2]
[366215165,1750126245726,-369.27127661,0.00016779,2]
[366215167,1750126245736,-490.0,0.00016779,2]
[366215169,1750126245748,-490.0,0.00016779,2]
[366215171,1750126245759,-490.0,0.00016779,2]
[366215173,1750126245769,-490.0,0.00016779,2]
[366215175,1750126245779,-433.64080424,0.00016779,2]
[366215177,1750126245790,-490.0,0.00016779,2]
[366215179,1750126245799,-496.36384195,0.00016779,2]
[366215180,1750126245809,-492.18110598,0.00016779,2]
[366215181,1750126245819,-491.67665656,0.00016779,2]
[366215182,1750126245829,-428.34499759,0.00016779,2]
[366215183,1750126245838,-490.0,0.00016779,2]
[366215184,1750126245847,-496.53561916,0.00016779,2]
[366215185,1750126245857,-493.06581626,0.00016779,2]
[366215186,1750126245866,-490.0,0.00016779,2]
[366215187,1750126245876,-375.4559942,0.00016779,2]
[366215188,1750126245886,-490.0,0.00016779,2]
[366215189,1750126245895,-490.0,0.00016779,2]
[366215190,1750126245905,-490.0,0.00016779,2]
[366215191,1750126245915,-492.30344492,0.00016779,2]
[366215192,1750126245924,-490.0,0.00016779,2]
[366215193,1750126245934,-490.56129053,0.00016779,2]
[366215194,1750126245943,-491.92272436,0.00016779,2]
[366215195,1750126245952,-491.456294,0.00016779,2]
[366215196,1750126245962,-490.0,0.00016779,2]
[366215198,1750126245972,-492.24346229,0.00016779,2]
[366215200,1750126245982,-494.2160818,0.00016779,2]
[366215202,1750126245992,-490.0,0.00016779,2]
[366215204,1750126246002,-563.82135061,0.00016779,2]
[366215206,1750126246012,-491.73288124,0.00016779,2]
[366215208,1750126246022,-496.13951822,0.00016779,2]
[366215210,1750126246032,-490.0,0.00016779,2]
[366215212,1750126246042,-490.0,0.00016779,2]
[366215214,1750126246052,-490.0,0.00016779,2]
[366215216,1750126246062,-490.0,0.00016779,2]
[366215218,1750126246072,-497.00292715,0.00016779,2]